[Event "Kvibergspelen 2018"]
[Site "Prioritet Serneke Arena, Krutvagen 2, Gothenburg, Sweden"]
[Date "2018.04.22"]
[Round "7.3"]
[White "Seo, Jung Min"]
[Black "Nilsson, Anders"]
[Result "1-0"]
[TimeControl "15 minutes + 5 seconds per move from move one (Round 1 - 4) / 90 minutes + 30 seconds per move from move one (Round 5 - 8)"]
[WhiteTitle "FM"]
[BlackTitle "CM"]
[WhiteFideId "1734687"]
[BlackFideId "1705423"]
[WhiteElo "2349"]
[BlackElo "2217"]

1. d4 {[%clk 01:30:58]} {[%emt 00:13:02]} e6 {[%clk 01:29:53]} {[%emt
00:01:06]} 2. c4 {[%clk 01:31:05]} {[%emt 00:00:23]} Nf6 {[%clk 01:30:02]}
{[%emt 00:00:20]} 3. Nf3 {[%clk 01:31:30]} {[%emt 00:00:06]} Bb4+ {[%clk
01:30:12]} {[%emt 00:00:21]} 4. Nbd2 {[%clk 01:31:36]} {[%emt 00:00:23]} d5
{[%clk 01:30:13]} {[%emt 00:00:29]} 5. e3 {[%clk 01:30:54]} {[%emt 00:01:12]}
O-O {[%clk 01:24:32]} {[%emt 00:06:11]} 6. a3 {[%clk 01:30:09]} {[%emt
00:01:16]} Bxd2+ {[%clk 01:15:45]} {[%emt 00:09:17]} 7. Nxd2 {[%clk 01:27:50]}
{[%emt 00:02:49]} Ne4 {[%clk 01:15:33]} {[%emt 00:00:41]} 8. Bd3 {[%clk
01:24:36]} {[%emt 00:03:45]} f5 {[%clk 01:15:57]} {[%emt 00:00:05]} 9. O-O
{[%clk 01:23:05]} {[%emt 00:02:01]} Nd7 {[%clk 01:04:18]} {[%emt 00:12:08]} 10.
f3 {[%clk 01:20:21]} {[%emt 00:03:15]} Ng5 {[%clk 01:00:29]} {[%emt 00:04:19]}
11. f4 {[%clk 00:56:30]} {[%emt 00:24:22]} Ne4 {[%clk 00:58:46]} {[%emt
00:02:12]} 12. Nxe4 {[%clk 00:52:06]} {[%emt 00:04:54]} fxe4 {[%clk 00:59:01]}
{[%emt 00:00:15]} 13. Be2 {[%clk 00:52:33]} {[%emt 00:00:03]} Nf6 {[%clk
00:39:24]} {[%emt 00:20:07]} 14. Bd2 {[%clk 00:50:39]} {[%emt 00:02:24]} Bd7
{[%clk 00:38:06]} {[%emt 00:01:46]} 15. Bb4 {[%clk 00:47:04]} {[%emt 00:04:06]}
Rf7 {[%clk 00:34:05]} {[%emt 00:04:31]} 16. Be1 {[%clk 00:47:00]} {[%emt
00:00:34]} a5 {[%clk 00:30:10]} {[%emt 00:04:25]} 17. Bh4 {[%clk 00:41:37]}
{[%emt 00:05:53]} a4 {[%clk 00:30:01]} {[%emt 00:00:39]} 18. Kh1 {[%clk
00:39:11]} {[%emt 00:02:55]} b5 {[%clk 00:24:43]} {[%emt 00:05:48]} 19. c5
{[%clk 00:36:01]} {[%emt 00:03:40]} Qb8 {[%clk 00:24:01]} {[%emt 00:01:12]} 20.
Be1 {[%clk 00:31:59]} {[%emt 00:04:33]} Kh8 {[%clk 00:20:08]} {[%emt 00:04:21]}
21. g4 {[%clk 00:31:19]} {[%emt 00:01:11]} Ng8 {[%clk 00:20:28]} {[%emt
00:00:11]} 22. Rg1 {[%clk 00:31:04]} {[%emt 00:00:46]} Ne7 {[%clk 00:20:44]}
{[%emt 00:00:13]} 23. Bb4 {[%clk 00:26:16]} {[%emt 00:05:18]} Qb7 {[%clk
00:13:46]} {[%emt 00:07:27]} 24. Rg3 {[%clk 00:25:15]} {[%emt 00:01:32]} Rg8
{[%clk 00:10:56]} {[%emt 00:03:20]} 25. Qg1 {[%clk 00:21:16]} {[%emt 00:04:28]}
g5 {[%clk 00:10:05]} {[%emt 00:01:21]} 26. fxg5 {[%clk 00:21:40]} {[%emt
00:00:07]} Rxg5 {[%clk 00:10:08]} {[%emt 00:00:27]} 27. Rf1 {[%clk 00:21:01]}
{[%emt 00:01:09]} Rgg7 {[%clk 00:10:36]} {[%emt 00:00:03]} 28. Rg2 {[%clk
00:20:39]} {[%emt 00:00:52]} Qb8 {[%clk 00:10:25]} {[%emt 00:00:41]} 29. Rgf2
{[%clk 00:20:38]} {[%emt 00:00:31]} Qg8 {[%clk 00:10:08]} {[%emt 00:00:48]} 30.
Rxf7 {[%clk 00:20:54]} {[%emt 00:00:15]} Rxf7 {[%clk 00:10:30]} {[%emt
00:00:07]} 31. Be1 {[%clk 00:20:29]} {[%emt 00:00:54]} Be8 {[%clk 00:09:05]}
{[%emt 00:01:54]} 32. Bg3 {[%clk 00:20:28]} {[%emt 00:00:31]} Ng6 {[%clk
00:09:27]} {[%emt 00:00:09]} 33. h4 {[%clk 00:19:48]} {[%emt 00:01:10]} h6
{[%clk 00:07:12]} {[%emt 00:02:44]} 34. h5 {[%clk 00:19:38]} {[%emt 00:00:40]}
Nf8 {[%clk 00:07:40]} {[%emt 00:00:01]} 35. Rf4 {[%clk 00:19:33]} {[%emt
00:00:35]} Nh7 {[%clk 00:07:10]} {[%emt 00:01:00]} 36. Qf1 {[%clk 00:19:22]}
{[%emt 00:00:42]} c6 {[%clk 00:07:27]} {[%emt 00:00:13]} 37. Kg2 {[%clk
00:16:20]} {[%emt 00:03:32]} Ng5 {[%clk 00:07:39]} {[%emt 00:00:18]} 38. Rf6
{[%clk 00:16:14]} {[%emt 00:00:35]} Qf8 {[%clk 00:07:22]} {[%emt 00:00:48]} 39.
Rxf7 {[%clk 00:13:43]} {[%emt 00:03:01]} Qxf7 {[%clk 00:07:33]} {[%emt
00:00:20]} 40. Be5 {[%clk 00:11:59]} {[%emt 00:02:14]} Kg8 {[%clk 00:07:51]}
{[%emt 00:00:12]} 41. Qf4 {[%clk 00:11:10]} {[%emt 00:01:18]} Bd7 {[%clk
00:07:25]} {[%emt 00:00:57]} 42. Kg3 {[%clk 00:10:39]} {[%emt 00:01:02]} Be8
{[%clk 00:07:39]} {[%emt 00:00:16]} 43. Bf6 {[%clk 00:09:45]} {[%emt 00:01:24]}
Nh7 {[%clk 00:07:21]} {[%emt 00:00:47]} 44. Bh4 {[%clk 00:09:46]} {[%emt
00:00:28]} Kg7 {[%clk 00:07:08]} {[%emt 00:00:43]} 45. Qxf7+ {[%clk 00:09:24]}
{[%emt 00:00:53]} Kxf7 {[%clk 00:06:19]} {[%emt 00:01:19]} 46. Kf4 {[%clk
00:09:46]} {[%emt 00:00:07]} Bd7 {[%clk 00:06:26]} {[%emt 00:00:23]} 47. Ke5
{[%clk 00:10:05]} {[%emt 00:00:10]} Be8 {[%clk 00:03:05]} {[%emt 00:03:52]} 48.
Bd1 {[%clk 00:08:41]} {[%emt 00:01:54]} Nf8 {[%clk 00:02:56]} {[%emt 00:00:40]}
49. b3 {[%clk 00:05:52]} {[%emt 00:03:19]} b4 {[%clk 00:02:52]} {[%emt
00:00:33]} 50. bxa4 {[%clk 00:06:07]} {[%emt 00:00:15]} bxa3 {[%clk 00:03:18]}
{[%emt 00:00:04]} 51. Bb3 {[%clk 00:06:31]} {[%emt 00:00:06]} Nd7+ {[%clk
00:03:30]} {[%emt 00:00:18]} 52. Kd6 {[%clk 00:06:17]} {[%emt 00:00:44]} Nb8
{[%clk 00:03:19]} {[%emt 00:00:40]} 53. Kc7 {[%clk 00:05:53]} {[%emt 00:00:55]}
Na6+ {[%clk 00:03:43]} {[%emt 00:00:06]} 54. Kb6 {[%clk 00:06:20]} {[%emt
00:00:04]} Nb4 {[%clk 00:04:04]} {[%emt 00:00:09]} 55. a5 {[%clk 00:06:43]}
{[%emt 00:00:07]} e5 {[%clk 00:01:40]} {[%emt 00:02:54]} 56. Be1 {[%clk
00:05:24]} {[%emt 00:01:49]} 1-0

[Event "Kvibergspelen 2018"]
[Site "Prioritet Serneke Arena, Krutvagen 2, Gothenburg, Sweden"]
[Date "2018.04.22"]
[Round "7.4"]
[White "Kucuksari, Kaan"]
[Black "Hillarp Persson, Tiger"]
[Result "1-0"]
[TimeControl "15 minutes + 5 seconds per move from move one (Round 1 - 4) / 90 minutes + 30 seconds per move from move one (Round 5 - 8)"]
[WhiteTitle "FM"]
[BlackTitle "GM"]
[WhiteFideId "6380166"]
[BlackFideId "1700812"]
[WhiteElo "2251"]
[BlackElo "2540"]

1. d4 {[%clk 01:30:58]} d5 {[%clk 01:27:58]} {[%emt 00:03:02]} 2. Nf3 {[%clk
01:31:25]} {[%emt 00:00:03]} Nf6 {[%clk 01:28:19]} {[%emt 00:00:09]} 3. c4
{[%clk 01:31:54]} {[%emt 00:00:02]} c6 {[%clk 01:28:42]} {[%emt 00:00:07]} 4.
Qc2 {[%clk 01:32:20]} {[%emt 00:00:04]} g6 {[%clk 01:29:03]} {[%emt 00:00:09]}
5. Bf4 {[%clk 01:32:46]} {[%emt 00:00:04]} Bg7 {[%clk 01:29:24]} {[%emt
00:00:08]} 6. e3 {[%clk 01:33:14]} {[%emt 00:00:02]} O-O {[%clk 01:29:45]}
{[%emt 00:00:09]} 7. Nc3 {[%clk 01:33:28]} {[%emt 00:00:17]} c5 {[%clk
01:29:55]} {[%emt 00:00:18]} 8. dxc5 {[%clk 01:33:25]} {[%emt 00:00:35]} Qa5
{[%clk 01:30:17]} {[%emt 00:00:08]} 9. Rc1 {[%clk 01:33:01]} {[%emt 00:00:54]}
Na6 {[%clk 01:04:19]} {[%emt 00:26:28]} 10. a3 {[%clk 01:26:49]} {[%emt
00:06:43]} Bf5 {[%clk 00:54:09]} {[%emt 00:10:39]} 11. Qa4 {[%clk 01:16:43]}
{[%emt 00:10:35]} Qxa4 {[%clk 00:54:24]} {[%emt 00:00:15]} 12. Nxa4 {[%clk
01:17:06]} {[%emt 00:00:08]} Bd7 {[%clk 00:54:45]} {[%emt 00:00:08]} 13. Nc3
{[%clk 01:17:14]} {[%emt 00:00:22]} Nxc5 {[%clk 00:43:25]} {[%emt 00:11:50]} 14.
cxd5 {[%clk 01:12:27]} {[%emt 00:05:17]} Rfc8 {[%clk 00:43:40]} {[%emt
00:00:13]} 15. Ne5 {[%clk 00:47:29]} {[%emt 00:25:30]} Na4 {[%clk 00:36:00]}
{[%emt 00:08:09]} 16. Nxd7 {[%clk 00:18:45]} {[%emt 00:29:15]} Nxd7 {[%clk
00:35:03]} {[%emt 00:01:27]} 17. Bb5 {[%clk 00:17:57]} {[%emt 00:01:17]} Ndb6
{[%clk 00:19:05]} {[%emt 00:16:28]} 18. Bxa4 {[%clk 00:17:24]} {[%emt
00:01:04]} Nxa4 {[%clk 00:19:28]} {[%emt 00:00:07]} 19. Kd2 {[%clk 00:17:29]}
{[%emt 00:00:24]} Nxb2 {[%clk 00:19:45]} {[%emt 00:00:13]} 20. Nb5 {[%clk
00:17:21]} {[%emt 00:00:38]} Rc4 {[%clk 00:06:16]} {[%emt 00:13:59]} 21. Rxc4
{[%clk 00:13:08]} {[%emt 00:04:44]} Nxc4+ {[%clk 00:06:38]} {[%emt 00:00:07]}
22. Kd3 {[%clk 00:13:33]} {[%emt 00:00:04]} Nb2+ {[%clk 00:06:56]} {[%emt
00:00:13]} 23. Kd2 {[%clk 00:10:47]} {[%emt 00:03:16]} Nc4+ {[%clk 00:04:45]}
{[%emt 00:02:41]} 24. Kd3 {[%clk 00:06:58]} {[%emt 00:04:20]} Nb2+ {[%clk
00:05:09]} {[%emt 00:00:06]} 25. Ke2 {[%clk 00:05:12]} {[%emt 00:02:16]} Rc8
{[%clk 00:04:55]} {[%emt 00:00:43]} 26. Nxa7 {[%clk 00:04:58]} {[%emt
00:00:44]} Rc2+ {[%clk 00:05:12]} {[%emt 00:00:12]} 27. Kf3 {[%clk 00:05:26]}
{[%emt 00:00:02]} Nd3 {[%clk 00:05:06]} {[%emt 00:00:37]} 28. Bg3 {[%clk
00:03:44]} {[%emt 00:02:12]} f5 {[%clk 00:05:22]} {[%emt 00:00:14]} 29. Rd1
{[%clk 00:03:26]} {[%emt 00:00:48]} Nc5 {[%clk 00:05:46]} {[%emt 00:00:06]} 30.
h4 {[%clk 00:02:03]} {[%emt 00:01:53]} Ne4 {[%clk 00:05:39]} {[%emt 00:00:36]}
31. Nb5 {[%clk 00:01:16]} {[%emt 00:01:17]} Be5 {[%clk 00:05:38]} {[%emt
00:00:31]} 32. Nd4 {[%clk 00:01:28]} {[%emt 00:00:19]} Ra2 {[%clk 00:05:46]}
{[%emt 00:00:21]} 33. Ne2 {[%clk 00:01:03]} {[%emt 00:00:55]} Bxg3 {[%clk
00:06:04]} {[%emt 00:00:13]} 34. fxg3 {[%clk 00:01:32]} {[%emt 00:00:02]} Rxa3
{[%clk 00:06:17]} {[%emt 00:00:17]} 35. g4 {[%clk 00:01:08]} {[%emt 00:00:53]}
Nd6 {[%clk 00:06:16]} {[%emt 00:00:30]} 36. Rd4 {[%clk 00:00:38]} {[%emt
00:01:01]} b5 {[%clk 00:05:47]} {[%emt 00:00:59]} 37. gxf5 {[%clk 00:00:33]}
{[%emt 00:00:35]} Nxf5 {[%clk 00:05:24]} {[%emt 00:00:54]} 38. Re4 {[%clk
00:00:49]} {[%emt 00:00:14]} Ra4 {[%clk 00:05:44]} {[%emt 00:00:10]} 39. Nd4
{[%clk 00:00:37]} {[%emt 00:00:41]} Nxd4+ {[%clk 00:05:55]} {[%emt 00:00:19]}
40. exd4 {[%clk 00:00:33]} {[%emt 00:00:34]} Kf7 {[%clk 00:06:10]} {[%emt
00:00:15]} 41. Ke3 {[%clk 00:00:36]} {[%emt 00:00:27]} Ra3+ {[%clk 00:06:14]}
{[%emt 00:00:26]} 42. Kf4 {[%clk 00:00:58]} {[%emt 00:00:08]} Rd3 {[%clk
00:06:20]} {[%emt 00:00:24]} 43. Ke5 {[%clk 00:00:59]} {[%emt 00:00:29]} b4
{[%clk 00:06:08]} {[%emt 00:00:41]} 44. d6 {[%clk 00:00:41]} {[%emt 00:00:48]}
exd6+ {[%clk 00:06:32]} {[%emt 00:00:06]} 45. Kxd6 {[%clk 00:01:07]} {[%emt
00:00:04]} b3 {[%clk 00:06:54]} {[%emt 00:00:08]} 46. d5 {[%clk 00:01:03]}
{[%emt 00:00:35]} Rg3 {[%clk 00:05:48]} {[%emt 00:01:35]} 47. Re7+ {[%clk
00:00:33]} {[%emt 00:01:00]} Kf6 {[%clk 00:06:07]} {[%emt 00:00:10]} 48. Re2
{[%clk 00:00:57]} {[%emt 00:00:06]} Kf5 {[%clk 00:02:14]} {[%emt 00:04:23]} 49.
Ke7 {[%clk 00:00:51]} {[%emt 00:00:36]} Rc3 {[%clk 00:02:28]} {[%emt 00:00:17]}
50. d6 {[%clk 00:00:36]} {[%emt 00:00:46]} Rc2 {[%clk 00:02:52]} {[%emt
00:00:06]} 51. Rxc2 {[%clk 00:00:34]} {[%emt 00:00:32]} bxc2 {[%clk 00:03:15]}
{[%emt 00:00:07]} 52. d7 {[%clk 00:01:02]} {[%emt 00:00:02]} c1=Q {[%clk
00:03:37]} {[%emt 00:00:08]} 53. d8=Q {[%clk 00:01:28]} {[%emt 00:00:03]} Kg4
{[%clk 00:03:15]} {[%emt 00:00:51]} 54. Kf7 {[%clk 00:01:34]} {[%emt 00:00:24]}
Qh6 {[%clk 00:02:15]} {[%emt 00:01:31]} 55. Qd1+ {[%clk 00:00:54]} {[%emt
00:01:10]} Kf5 {[%clk 00:00:46]} {[%emt 00:01:59]} 56. Qd5+ {[%clk 00:00:54]}
{[%emt 00:00:30]} Kf4 {[%clk 00:00:49]} {[%emt 00:00:28]} 57. Qd2+ {[%emt
00:00:25]} Ke4 1-0

[Event "Kvibergspelen 2018"]
[Site "Prioritet Serneke Arena, Krutvagen 2, Gothenburg, Sweden"]
[Date "2018.04.22"]
[Round "7.5"]
[White "Storme, Isak"]
[Black "Hector, Jonny"]
[Result "1/2-1/2"]
[TimeControl "15 minutes + 5 seconds per move from move one (Round 1 - 4) / 90 minutes + 30 seconds per move from move one (Round 5 - 8)"]
[WhiteTitle "CM"]
[BlackTitle "GM"]
[WhiteFideId "1728113"]
[BlackFideId "1700090"]
[WhiteElo "2323"]
[BlackElo "2502"]

1. e4 {[%clk 01:30:58]} {[%emt 00:07:36]} e5 {[%clk 01:30:52]} {[%emt
00:00:08]} 2. Nf3 {[%clk 01:31:11]} {[%emt 00:00:18]} Nc6 {[%clk 01:31:16]}
{[%emt 00:00:05]} 3. Bb5 {[%clk 01:31:27]} {[%emt 00:00:15]} a6 {[%clk
01:31:14]} {[%emt 00:00:31]} 4. Ba4 {[%clk 01:31:50]} {[%emt 00:00:08]} d6
{[%clk 01:31:24]} {[%emt 00:00:19]} 5. O-O {[%clk 01:31:31]} {[%emt 00:00:50]}
Bd7 {[%clk 01:30:58]} {[%emt 00:00:56]} 6. c3 {[%clk 01:28:09]} {[%emt
00:03:53]} g5 {[%clk 01:30:27]} {[%emt 00:01:00]} 7. d4 {[%clk 01:23:45]}
{[%emt 00:04:54]} g4 {[%clk 01:30:31]} {[%emt 00:00:26]} 8. Ne1 {[%clk
01:13:16]} {[%emt 00:11:00]} h5 {[%clk 01:25:37]} {[%emt 00:05:23]} 9. f4
{[%clk 01:04:13]} {[%emt 00:09:35]} exf4 {[%clk 01:25:18]} {[%emt 00:00:49]} 10.
Bxf4 {[%clk 01:03:33]} {[%emt 00:01:10]} Bh6 {[%clk 01:17:15]} {[%emt
00:08:32]} 11. Nd3 {[%clk 00:46:03]} {[%emt 00:18:00]} Qe7 {[%clk 01:10:43]}
{[%emt 00:07:02]} 12. e5 {[%clk 00:21:23]} {[%emt 00:25:10]} Bxf4 {[%clk
01:07:00]} {[%emt 00:04:12]} 13. Nxf4 {[%clk 00:20:45]} {[%emt 00:01:09]} dxe5
{[%clk 01:05:51]} {[%emt 00:01:38]} 14. Nd5 {[%clk 00:16:51]} {[%emt 00:04:24]}
Qd6 {[%clk 01:05:45]} {[%emt 00:00:36]} 15. dxe5 {[%clk 00:16:55]} {[%emt
00:00:27]} Nxe5 {[%clk 01:03:38]} {[%emt 00:02:36]} 16. Bxd7+ {[%clk 00:16:43]}
{[%emt 00:00:42]} Nxd7 {[%clk 01:02:10]} {[%emt 00:01:58]} 17. Qd4 {[%clk
00:12:37]} {[%emt 00:04:36]} Rh6 {[%clk 00:58:13]} {[%emt 00:04:26]} 18. Na3
{[%clk 00:09:06]} {[%emt 00:04:03]} O-O-O {[%clk 00:55:06]} {[%emt 00:03:36]}
19. Nc4 {[%clk 00:06:44]} {[%emt 00:02:53]} Qc5 {[%clk 00:51:51]} {[%emt
00:03:44]} 20. Rxf7 {[%clk 00:07:07]} {[%emt 00:00:07]} Rc6 {[%clk 00:47:37]}
{[%emt 00:04:44]} 21. b3 {[%clk 00:06:08]} {[%emt 00:01:30]} Qxd4+ {[%clk
00:37:38]} {[%emt 00:10:28]} 22. cxd4 {[%clk 00:06:32]} {[%emt 00:00:06]} Ndf6
{[%clk 00:36:58]} {[%emt 00:01:09]} 23. Nxf6 {[%clk 00:06:40]} {[%emt
00:00:23]} Rxf6 {[%clk 00:35:12]} {[%emt 00:02:16]} 24. Rf1 {[%clk 00:05:45]}
{[%emt 00:01:25]} Rxf7 {[%clk 00:33:54]} {[%emt 00:01:49]} 25. Rxf7 {[%clk
00:06:10]} {[%emt 00:00:05]} Rxd4 {[%clk 00:33:59]} {[%emt 00:00:25]} 26. Ne5
{[%clk 00:06:17]} {[%emt 00:00:23]} b5 {[%clk 00:25:25]} {[%emt 00:09:04]} 27.
Rf8+ {[%clk 00:04:47]} {[%emt 00:02:00]} Rd8 {[%clk 00:25:45]} {[%emt
00:00:09]} 28. Rf5 {[%clk 00:05:09]} {[%emt 00:00:08]} Kb7 {[%clk 00:24:31]}
{[%emt 00:01:44]} 29. Rxh5 {[%clk 00:04:37]} {[%emt 00:01:03]} Rd5 {[%clk
00:23:13]} {[%emt 00:01:47]} 30. Rh8 {[%clk 00:04:12]} {[%emt 00:00:55]} Nf6
{[%clk 00:21:28]} {[%emt 00:02:15]} 31. Rf8 {[%clk 00:04:32]} {[%emt 00:00:10]}
g3 {[%clk 00:20:44]} {[%emt 00:01:14]} 32. hxg3 {[%clk 00:04:37]} {[%emt
00:00:26]} Ne4 {[%clk 00:20:59]} {[%emt 00:00:14]} 33. Nf3 {[%clk 00:03:50]}
{[%emt 00:01:17]} c5 {[%clk 00:17:24]} {[%emt 00:04:04]} 34. g4 {[%clk
00:03:07]} {[%emt 00:01:14]} c4 {[%clk 00:16:44]} {[%emt 00:01:10]} 35. bxc4
{[%clk 00:03:27]} {[%emt 00:00:11]} bxc4 {[%clk 00:17:06]} {[%emt 00:00:08]} 36.
Rf4 {[%clk 00:03:34]} {[%emt 00:00:23]} c3 {[%clk 00:16:48]} {[%emt 00:00:48]}
37. Rxe4 {[%clk 00:03:22]} {[%emt 00:00:42]} c2 {[%clk 00:17:11]} {[%emt
00:00:07]} 38. Rb4+ {[%clk 00:03:10]} {[%emt 00:00:43]} Rb5 {[%clk 00:17:11]}
{[%emt 00:00:30]} 39. Rc4 {[%clk 00:03:34]} {[%emt 00:00:05]} Rb1+ {[%clk
00:17:35]} {[%emt 00:00:06]} 40. Kf2 {[%clk 00:03:48]} {[%emt 00:00:15]} c1=Q
{[%clk 00:17:54]} {[%emt 00:00:10]} 41. Rxc1 {[%clk 00:04:12]} {[%emt
00:00:07]} Rxc1 {[%clk 00:18:15]} {[%emt 00:00:09]} 42. g5 {[%clk 00:04:29]}
{[%emt 00:00:13]} Rc2+ {[%clk 00:16:43]} {[%emt 00:02:01]} 43. Kg3 {[%clk
00:04:53]} {[%emt 00:00:06]} Rxa2 {[%clk 00:17:09]} {[%emt 00:00:05]} 44. g6
{[%clk 00:04:35]} {[%emt 00:00:48]} Rc2 {[%clk 00:17:10]} {[%emt 00:00:28]} 45.
Nd4 {[%clk 00:03:49]} {[%emt 00:01:15]} Rc8 {[%clk 00:16:18]} {[%emt 00:01:22]}
46. Kf4 {[%clk 00:03:06]} {[%emt 00:01:12]} a5 {[%clk 00:13:31]} {[%emt
00:03:19]} 47. Ke5 {[%clk 00:02:37]} {[%emt 00:01:00]} a4 {[%clk 00:12:11]}
{[%emt 00:01:49]} 48. Nb5 {[%clk 00:01:57]} {[%emt 00:01:11]} Kb6 {[%clk
00:11:14]} {[%emt 00:01:26]} 49. Na3 {[%clk 00:01:21]} {[%emt 00:01:05]} Rc3
{[%clk 00:10:01]} {[%emt 00:01:42]} 50. g7 {[%clk 00:01:12]} {[%emt 00:00:40]}
Rg3 {[%clk 00:10:20]} {[%emt 00:00:11]} 51. Kf6 {[%clk 00:01:26]} {[%emt
00:00:15]} Kc5 {[%clk 00:10:30]} {[%emt 00:00:20]} 52. Kf7 {[%clk 00:01:39]}
{[%emt 00:00:17]} Kb4 {[%clk 00:10:16]} {[%emt 00:00:45]} 53. Nb1 {[%clk
00:01:31]} {[%emt 00:00:37]} Rxg2 {[%clk 00:09:45]} {[%emt 00:01:01]} 54. g8=Q
{[%clk 00:01:53]} {[%emt 00:00:09]} Rxg8 {[%clk 00:10:05]} {[%emt 00:00:09]} 55.
Kxg8 {[%clk 00:02:16]} {[%emt 00:00:07]} Kb3 {[%clk 00:10:30]} {[%emt
00:00:05]} 56. Kf7 {[%clk 00:01:59]} {[%emt 00:00:46]} Kb2 {[%clk 00:10:45]}
{[%emt 00:00:15]} 57. Nd2 {[%clk 00:02:21]} {[%emt 00:00:08]} Kc2 {[%clk
00:11:06]} {[%emt 00:00:10]} 58. Nc4 {[%clk 00:02:37]} {[%emt 00:00:12]} Kc3
{[%clk 00:11:28]} {[%emt 00:00:09]} 59. Na3 {[%clk 00:02:52]} {[%emt 00:00:16]}
Kb4 {[%clk 00:11:51]} {[%emt 00:00:06]} 60. Nb1 {[%clk 00:03:10]} {[%emt
00:00:11]} a3 {[%clk 00:12:13]} {[%emt 00:00:08]} 1/2-1/2

[Event "Kvibergspelen 2018"]
[Site "Prioritet Serneke Arena, Krutvagen 2, Gothenburg, Sweden"]
[Date "2018.04.22"]
[Round "7.6"]
[White "Tikkanen, Hans"]
[Black "Al Hadarani, Hatim"]
[Result "1-0"]
[TimeControl "15 minutes + 5 seconds per move from move one (Round 1 - 4) / 90 minutes + 30 seconds per move from move one (Round 5 - 8)"]
[WhiteTitle "GM"]
[BlackTitle "FM"]
[WhiteFideId "1706446"]
[BlackFideId "9400273"]
[WhiteElo "2486"]
[BlackElo "2334"]

1. d4 {[%clk 01:30:57]} {[%emt 00:13:03]} Nf6 {[%clk 01:23:58]} {[%emt
00:07:02]} 2. Nf3 {[%clk 01:30:59]} {[%emt 00:00:28]} c5 {[%clk 01:23:57]}
{[%emt 00:00:31]} 3. d5 {[%clk 01:25:03]} {[%emt 00:06:27]} e6 {[%clk
01:23:48]} {[%emt 00:00:38]} 4. c4 {[%clk 01:24:46]} {[%emt 00:00:47]} b5
{[%clk 01:22:55]} {[%emt 00:01:23]} 5. Bg5 {[%clk 01:17:27]} {[%emt 00:07:49]}
h6 {[%clk 01:21:08]} {[%emt 00:02:16]} 6. Bxf6 {[%clk 01:01:56]} {[%emt
00:16:01]} Qxf6 {[%clk 01:21:25]} {[%emt 00:00:13]} 7. Nc3 {[%clk 00:49:40]}
{[%emt 00:12:47]} b4 {[%clk 01:09:22]} {[%emt 00:12:33]} 8. Nb5 {[%clk
00:38:34]} {[%emt 00:11:36]} Na6 {[%clk 00:56:25]} {[%emt 00:13:26]} 9. e4
{[%clk 00:35:45]} {[%emt 00:03:18]} Be7 {[%clk 00:33:16]} {[%emt 00:23:39]} 10.
d6 {[%clk 00:14:42]} {[%emt 00:21:32]} Bd8 {[%clk 00:33:13]} {[%emt 00:00:34]}
11. e5 {[%clk 00:15:04]} {[%emt 00:00:09]} Qg6 {[%clk 00:33:10]} {[%emt
00:00:33]} 12. Bd3 {[%clk 00:15:19]} {[%emt 00:00:15]} f5 {[%clk 00:27:31]}
{[%emt 00:06:08]} 13. exf6 {[%clk 00:15:15]} {[%emt 00:00:34]} Qxf6 {[%clk
00:27:53]} {[%emt 00:00:08]} 14. Qe2 {[%clk 00:15:42]} {[%emt 00:00:03]} Bb7
{[%clk 00:22:32]} {[%emt 00:05:51]} 15. Ne5 {[%clk 00:16:05]} {[%emt 00:00:08]}
Nb8 {[%clk 00:14:41]} {[%emt 00:08:22]} 16. Bg6+ {[%clk 00:02:09]} {[%emt
00:14:24]} Kf8 {[%clk 00:14:36]} {[%emt 00:00:35]} 17. Be4 {[%clk 00:02:37]}
{[%emt 00:00:03]} Bxe4 {[%clk 00:09:56]} {[%emt 00:05:10]} 18. Qxe4 {[%clk
00:03:05]} {[%emt 00:00:02]} Kg8 {[%clk 00:10:08]} {[%emt 00:00:18]} 19. O-O
{[%clk 00:02:15]} {[%emt 00:01:20]} 1-0